fUSD/lending_fUSD_20251026
["ID","MTS","AMOUNT","RATE_DAILY","PERIOD"]
[392440019,1761475873994,-4710.98,0.00044,30]
[392440020,1761475874003,-500.0,0.00044031,120]
[392440021,1761475874012,-205.02961819,0.00044033,7]
[392440022,1761475874022,-831.0,0.00044101,30]
[392440023,1761475874032,-175.54,0.00044233,2]
[392440024,1761475874042,-547.92,0.00044353,30]
[392440025,1761475874052,-207.49,0.00044353,30]
[392440026,1761475874062,-168.61,0.00044353,30]
[392440027,1761475874071,-852.15,0.00044354,30]
[392440028,1761475874082,-168.61,0.00044354,30]
[392440029,1761475874092,-547.92,0.00044354,30]
[392440030,1761475874101,-541.93,0.00044354,30]
[392440031,1761475874110,-222.72,0.00044354,30]
[392440032,1761475874119,-600.0,0.000444,15]
[392440033,1761475874129,-185.78,0.000444,30]
[392440034,1761475874141,-1377.71093243,0.00044444,120]
[392440035,1761475874151,-321.7771279,0.000445,120]
[392440036,1761475874160,-831.0,0.00044533,30]
[392440037,1761475874171,-8832.69,0.000446,120]
[392440038,1761475874180,-152.13145157,0.00044707,120]
[392440039,1761475874189,-5555.35198078,0.00044788,120]
[392440040,1761475874199,-289.2460706,0.0004489,120]
[392440041,1761475874208,-1269.52,0.000449,120]
[392440042,1761475874218,-878.79961102,0.000449,30]
[392440043,1761475874227,-1011.36652342,0.000449,120]
[392440044,1761475874236,-507.15181486,0.000449,17]
[392440045,1761475874318,-338.06437678,0.00044932,60]
[392440046,1761475874327,-954.11227,0.0004499,120]
[392440047,1761475874336,-25531.31233777,0.00045,120]
[392440048,1761475874345,-1000.0,0.00045,120]
[392440049,1761475874355,-2312.0,0.00045,120]
[392440050,1761475874365,-44297.84,0.00045,120]
[392440051,1761475874374,-397.56080275,0.00045,120]
[392440052,1761475874384,-485.54731418,0.00045,30]
[392440053,1761475874393,-587.28029142,0.00045,120]
[392440054,1761475874403,-1000000.0,0.00045,120]
[392440055,1761475874412,-1000000.0,0.00045,120]
[392440056,1761475874422,-150.0,0.00045,50]
[392440057,1761475874431,-375.00165328,0.00045,120]
[392440058,1761475874440,-201.97435999,0.00045,120]
[392440059,1761475874449,-150.46196931,0.00045,120]
[392440060,1761475874459,-1949.6595138,0.00045,120]
[392440061,1761475874468,-580.0,0.00045,120]
[392440062,1761475874477,-380.0,0.00045,120]
[392440063,1761475874486,-83469.0,0.00045,120]
[392440064,1761475874495,-61206.0,0.00045,120]
[392440065,1761475874505,-7322.34,0.00045,14]
[392440066,1761475874514,-10200.0,0.00045,120]
[392440067,1761475874523,-56665.00462785,0.00045,30]
[392440068,1761475874533,-380.0,0.0004508,120]
[392440069,1761475874543,-999.0,0.00045205,120]
[392440070,1761475874553,-2000.0,0.000454,120]
[392440071,1761475874563,-500.0,0.00045445,120]
[392440072,1761475874572,-243.88600252,0.00045493,120]
[392440073,1761475874581,-1000.20968561,0.000455,120]
[392440074,1761475874592,-1000000.0,0.000455,120]
[392440075,1761475874602,-1000000.0,0.000455,120]
[392440076,1761475874611,-152.13145157,0.00045505,120]
[392440077,1761475874621,-234.54458332,0.000457,120]
[392440078,1761475874631,-206.19912108,0.00045709,120]
[392440079,1761475874640,-200.0,0.0004571,120]
[392440080,1761475874650,-197.91122427,0.00045873,2]
[392440081,1761475874659,-5000.0,0.000459,120]
[392440082,1761475874668,-168.33233248,0.000459,30]
[392440083,1761475874677,-300.0,0.000459,16]
[392440084,1761475874686,-1757.0,0.00046,120]
[392440085,1761475874695,-360000.0,0.00046,120]
[392440086,1761475874705,-1000.0,0.00046,30]
[392440087,1761475874714,-204.01446457,0.00046,30]
[392440088,1761475874724,-698.79829039,0.00046,30]
[392440089,1761475874734,-1000000.0,0.00046,120]
[392440090,1761475874743,-1000000.0,0.00046,120]
[392440091,1761475874753,-159.77504889,0.00046,120]
[392440092,1761475874764,-151.01854212,0.00046,120]
[392440093,1761475874773,-385.0,0.00046,120]
[392440094,1761475874782,-250.0,0.00046,30]
[392440095,1761475874793,-250.0,0.00046,30]
[392440096,1761475874803,-250.0,0.00046,30]
[392440097,1761475874813,-250.0,0.00046,30]
[392440098,1761475874822,-250.0,0.00046,30]
[392440099,1761475874831,-250.0,0.00046,30]
[392440100,1761475874840,-250.0,0.00046,30]
[392440101,1761475874850,-250.0,0.00046,30]
[392440102,1761475874859,-194.8,0.00046,30]
[392440103,1761475874868,-210.44,0.00046,30]
[392440104,1761475874877,-175.54,0.00046003,2]
[392440105,1761475874887,-624.26428388,0.0004613,120]
[392440106,1761475874897,-200.36,0.00046143,2]
[392440107,1761475874908,-152.13145157,0.00046303,120]
[392440108,1761475874919,-570.66619608,0.000464,2]
[392440109,1761475874929,-1000000.0,0.000465,120]
[392440110,1761475874940,-1000000.0,0.000465,120]
[392440111,1761475874950,-3377.35199742,0.000465,2]
[392440112,1761475874962,-1018.2042407,0.000466,120]
[392440113,1761475874973,-1200.0,0.000466,2]
[392440114,1761475874983,-373.0,0.000466,2]
[392440115,1761475874992,-500.0,0.000466,2]
[392440116,1761475875001,-1139.22334166,0.000468,120]
[392440117,1761475875011,-273.81,0.00046843,2]
[392440118,1761475875020,-497.021624,0.0004686,120]
[392440119,1761475875029,-592.84180466,0.000469,120]
[392440120,1761475875038,-150.0,0.00046962,30]
[392440121,1761475875048,-150.0,0.00046962,30]
[392440122,1761475875057,-150.0,0.00046962,30]
[392440123,1761475875066,-150.0,0.00046962,30]
[392440124,1761475875075,-150.0,0.00046962,30]
[392440125,1761475875084,-150.0,0.00046962,30]
[392440126,1761475875092,-510.0,0.00046962,120]
[392440127,1761475875101,-36115.81636871,0.00047,2]
[392440128,1761475875110,-2312.0,0.00047,120]
[392440129,1761475875119,-608.99849046,0.00047,30]
[392440130,1761475875130,-1000000.0,0.00047,120]
[392440131,1761475875140,-1000000.0,0.00047,120]
[392440132,1761475875149,-1000000.0,0.00047,120]
[392440133,1761475875159,-56665.00462785,0.00047,30]
[392440134,1761475875168,-5607.56,0.00047011,2]
[392440135,1761475875177,-152.13145157,0.00047102,120]
[392440136,1761475875187,-163.61,0.00047267,120]
[392440137,1761475875196,-2000.0,0.000474,120]
[392440138,1761475875205,-315.3025899,0.000474,120]
[392440139,1761475875214,-297.36,0.00047461,120]
[392440140,1761475875224,-626.18759582,0.000475,120]
[392440141,1761475875232,-1000000.0,0.000475,120]
[392440142,1761475875242,-1000000.0,0.000475,120]
[392440143,1761475875251,-516.67261533,0.000475,30]
[392440144,1761475875260,-5288.57688997,0.000476,2]
[392440145,1761475875270,-1000.0,0.00047767,2]
[392440146,1761475875279,-175.54,0.00047772,2]
[392440147,1761475875288,-1082.0,0.000478,17]
[392440148,1761475875297,-179.67,0.000479,120]
[392440149,1761475875306,-152.13,0.000479,120]
[392440150,1761475875315,-1000.0,0.00047999,120]
[392440151,1761475875324,-1000000.0,0.00048,120]
[392440152,1761475875333,-1000000.0,0.00048,120]
[392440153,1761475875342,-1000000.0,0.00048,120]
[392440154,1761475875351,-1000000.0,0.00048,120]
[392440155,1761475875360,-1000000.0,0.00048,120]
[392440156,1761475875369,-422000.0,0.00048,120]
[392440157,1761475875378,-1000000.0,0.00048,120]
[392440158,1761475875387,-1000000.0,0.00048,120]
[392440159,1761475875397,-1000000.0,0.00048,120]
[392440160,1761475875406,-1000000.0,0.00048,120]
[392440161,1761475875414,-1000000.0,0.00048,120]
[392440162,1761475875423,-1000000.0,0.00048,120]
[392440163,1761475875432,-1000000.0,0.00048,120]
[392440164,1761475875514,-1000000.0,0.00048,120]
[392440165,1761475875524,-1000000.0,0.00048,120]
[392440166,1761475875533,-499000.0,0.00048,120]
[392440167,1761475875542,-1000000.0,0.00048,120]
[392440168,1761475875550,-1700000.0,0.00048,120]
[392440169,1761475875559,-505000.0,0.00048,120]
[392440170,1761475875569,-201.85926596,0.00048,120]
[392440171,1761475875579,-345.02220279,0.00048,120]
[392440172,1761475875588,-800.0,0.00048,120]
[392440173,1761475875598,-508.0,0.00048,120]
[392440174,1761475875607,-56665.00462785,0.00048,30]
[392440175,1761475875616,-896.80592511,0.00048022,30]
[392440176,1761475875626,-155.98385243,0.0004835,2]
[392440177,1761475875636,-1000000.0,0.000485,120]
[392440178,1761475875645,-156.0,0.000487,120]
[392440179,1761475875654,-163.0,0.000487,120]
[392440180,1761475875664,-17267.91808379,0.000488,120]
[392440181,1761475875674,-10351.43712066,0.000488,120]
[392440182,1761475875684,-908.47476732,0.000488,120]
[392440183,1761475875694,-679.8273467,0.0004888,120]
[392440184,1761475875703,-159.69996655,0.000489,120]
[392440185,1761475875713,-5000.0,0.000489,120]
[392440186,1761475875722,-20000.0,0.0004897,120]
[392440187,1761475875732,-1000.0,0.00048999,120]
[392440188,1761475875740,-2312.0,0.00049,120]
[392440189,1761475875750,-784.53853509,0.00049,30]
[392440190,1761475875759,-152.44679537,0.00049,30]
[392440191,1761475875769,-26121.01292816,0.00049,120]
[392440192,1761475875778,-1000000.0,0.00049,120]
[392440193,1761475875787,-1000000.0,0.00049,120]
[392440194,1761475875796,-151.57748084,0.00049,120]
[392440195,1761475875805,-2000.0,0.000491,120]
[392440196,1761475875816,-1331.8,0.00049278,120]
[392440197,1761475875825,-300.0,0.00049315,30]
[392440198,1761475875835,-300.0,0.00049315,30]
[392440199,1761475875844,-300.0,0.00049315,30]
[392440200,1761475875853,-300.0,0.00049315,30]
[392440201,1761475875862,-207.68115064,0.000495,120]
[392440202,1761475875872,-210.4705348,0.000495,120]
[392440203,1761475875883,-1000000.0,0.000495,120]
[392440204,1761475875894,-1000000.0,0.000495,120]
[392440205,1761475875903,-206.62975687,0.000498,30]
[392440206,1761475875916,-1000.0,0.00049999,120]
[392440207,1761475875925,-446.18400024,0.00049999,7]
[392440208,1761475875935,-399.02422421,0.00049999,120]
[392440209,1761475875944,-429.00617513,0.00049999,120]
[392440210,1761475875953,-214.02785556,0.00049999,120]
[392440211,1761475875963,-500.0,0.00049999,120]
[392440212,1761475875972,-434.55704001,0.00049999,120]
[392440213,1761475875981,-429.535445,0.00049999,15]
[392440214,1761475875990,-500.0,0.00049999,120]
[392440215,1761475876000,-172.26916466,0.00049999,120]
[392440216,1761475876009,-500.0,0.00049999,120]
[392440217,1761475876018,-500.0,0.00049999,120]
[392440218,1761475876027,-500.0,0.00049999,120]
[392440219,1761475876042,-500.0,0.00049999,120]
[392440220,1761475876062,-500.0,0.00049999,120]
[392440221,1761475876081,-500.0,0.00049999,120]
[392440222,1761475876101,-500.0,0.00049999,120]
[392440223,1761475876115,-500.0,0.00049999,120]
[392440224,1761475876134,-380.95932702,0.00049999,120]
[392440225,1761475876154,-600.0,0.00049999,120]
[392440226,1761475876176,-50000.0,0.0005,50]
[392440227,1761475876193,-2000.0,0.0005,120]
[392440228,1761475876215,-500.0,0.0005,15]
[392440229,1761475876235,-44297.84,0.0005,120]
[392440230,1761475876249,-289.68595912,0.0005,120]
[392440231,1761475876267,-500.0,0.0005,120]
[392440232,1761475876280,-224.54800883,0.0005,120]
[392440233,1761475876297,-1144.77596272,0.0005,2]
[392440234,1761475876312,-600.0,0.0005,14]
[392440235,1761475876326,-808.61743434,0.0005,120]
[392440236,1761475876341,-290.25810154,0.0005,120]
[392440237,1761475876355,-769.00025077,0.0005,120]
[392440238,1761475876371,-1079.51712607,0.0005,120]
[392440239,1761475876385,-224.87832496,0.0005,120]
[392440240,1761475876400,-164.95967397,0.0005,120]
[392440241,1761475876414,-500.0,0.0005,30]
[392440242,1761475876429,-1000000.0,0.0005,120]
[392440243,1761475876443,-1000000.0,0.0005,120]
[392440244,1761475876457,-150.0,0.0005,55]
[392440245,1761475876470,-200.0,0.0005,120]
[392440246,1761475876485,-500.0,0.0005,120]
[392440247,1761475876500,-3891.8357301,0.0005,120]
[392440248,1761475876513,-701.67112438,0.0005,30]
[392440249,1761475876529,-580.0,0.0005,120]
[392440250,1761475876543,-2000.0,0.0005,120]
[392440251,1761475876557,-300.0,0.0005,120]
[392440252,1761475876573,-5020.0,0.0005,120]
[392440253,1761475876588,-6674.83331585,0.0005,120]
[392440254,1761475876602,-150.0,0.0005,2]
[392440255,1761475876617,-210.44,0.0005,120]
[392440256,1761475876631,-436.10495958,0.0005,120]
[392440257,1761475876647,-150.0,0.0005,120]
[392440258,1761475876661,-189.15091066,0.0005,120]
[392440259,1761475876676,-150.0,0.0005,120]
[392440260,1761475876691,-150.0,0.0005,120]
[392440261,1761475876706,-2312.0,0.00051,120]
[392440262,1761475876720,-1757.0,0.00051,120]
[392440263,1761475876736,-1130.25,0.00051,120]
[392440264,1761475876751,-1008.89794523,0.00051,60]
[392440265,1761475876765,-508.0,0.0005138,120]
[392440266,1761475876780,-2000.0,0.000514,120]
[392440267,1761475876796,-297.36,0.0005149,120]
[392440268,1761475876811,-5000.0,0.000519,120]
[392440269,1761475876826,-375.785,0.00051929,94]
[392440270,1761475876841,-1003.0,0.00052,60]
[392440271,1761475876856,-961.0,0.000521,2]
[392440272,1761475876873,-373.98340326,0.000521,2]
[392440273,1761475876992,-395.0,0.000521,2]
[392440274,1761475877010,-2000.0,0.000524,120]
[392440275,1761475877020,-200.36,0.00052632,2]
[392440276,1761475877029,-3300.62415118,0.00052937,2]
[392440277,1761475877039,-2312.0,0.00053,120]
[392440278,1761475877049,-579.80960853,0.00053,2]
[392440279,1761475877059,-600.0,0.00053,120]
[392440280,1761475877069,-1003.0,0.00053,60]
[392440281,1761475877080,-1971.629674,0.000531,120]
[392440282,1761475877089,-150.0,0.00053144,30]
[392440283,1761475877098,-244.52763561,0.00053144,30]
[392440284,1761475877108,-150.0,0.00053144,30]
[392440285,1761475877118,-1417.97758451,0.00053144,30]
[392440286,1761475877127,-150.0,0.00053144,30]
[392440287,1761475877136,-279.46398685,0.00053144,30]
[392440288,1761475877146,-449.24180397,0.0005331,2]
[392440289,1761475877155,-156.0,0.000534,120]
[392440290,1761475877165,-163.0,0.000534,120]
[392440291,1761475877174,-999.0,0.00053424,120]
[392440292,1761475877183,-1003.0,0.00054,60]
[392440293,1761475877193,-7791.41,0.00054494,14]
[392440294,1761475877203,-601.65,0.000546,90]
[392440295,1761475877212,-500.0,0.00054794,120]
[392440296,1761475877221,-500.0,0.00054794,120]
[392440297,1761475877230,-386.66335785,0.00054794,120]
[392440298,1761475877239,-2500.0,0.00054794,120]
[392440299,1761475877248,-852.45888293,0.00054794,120]
[392440300,1761475877257,-500.0,0.00054795,120]
[392440301,1761475877266,-500.0,0.00054795,120]
[392440302,1761475877276,-500.0,0.00054795,120]
[392440303,1761475877285,-500.0,0.00054795,120]
[392440304,1761475877295,-500.0,0.00054795,120]
[392440305,1761475877305,-500.0,0.00054795,120]
[392440306,1761475877315,-500.0,0.00054795,120]
[392440307,1761475877326,-500.0,0.00054795,120]
[392440308,1761475877335,-500.0,0.00054795,120]
[392440309,1761475877344,-500.0,0.00054795,120]
[392440310,1761475877355,-500.0,0.00054795,120]
[392440311,1761475877365,-500.0,0.00054795,120]
[392440312,1761475877374,-500.0,0.00054795,120]
[392440313,1761475877383,-520.568596,0.00054795,120]
[392440314,1761475877393,-200.0,0.00054851,120]
[392440315,1761475877402,-200.0,0.00054852,120]
[392440316,1761475877411,-5000.0,0.000549,120]
[392440317,1761475877421,-364.84927439,0.0005495,120]
[392440318,1761475877430,-2312.0,0.00055,120]
[392440319,1761475877439,-44297.84,0.00055,120]
[392440320,1761475877449,-2233.40553454,0.00055,120]
[392440321,1761475877458,-2471.38394509,0.00055,2]
[392440322,1761475877468,-214.53056079,0.00055,120]
[392440323,1761475877478,-500.0,0.00055,30]
[392440324,1761475877487,-150.0,0.00055,60]
[392440325,1761475877498,-500.0,0.00055,120]
[392440326,1761475877507,-280.0,0.00055,120]
[392440327,1761475877516,-753.74,0.00055,30]
[392440328,1761475877528,-1000.0,0.00055,30]
[392440329,1761475877538,-10000.0,0.00055,120]
[392440330,1761475877548,-1003.0,0.00055,60]
[392440331,1761475877559,-600.0,0.000555,15]
[392440332,1761475877568,-297.36,0.00055519,120]
[392440333,1761475877577,-1757.0,0.00056,120]
[392440334,1761475877587,-7322.34,0.00056,30]
[392440335,1761475877596,-4710.98,0.00056,30]
[392440336,1761475877605,-1003.0,0.00056,60]
[392440337,1761475877614,-1142.82,0.0005693,120]
[392440338,1761475877623,-445.0,0.00056986,120]
[392440339,1761475877632,-2312.0,0.00057,120]
[392440340,1761475877643,-185.78,0.00057,60]
[392440341,1761475877652,-944.0,0.00057,30]
[392440342,1761475877661,-961.50322506,0.000575,30]
[392440343,1761475877670,-395.73635208,0.000575,30]
[392440344,1761475877679,-1331.8,0.00057516,120]
[392440345,1761475877688,-2000.0,0.0005753,68]
[392440346,1761475877699,-368.0,0.00058,120]
[392440347,1761475877709,-273.81,0.00058076,120]
[392440348,1761475877718,-156.0,0.000581,120]
[392440349,1761475877727,-163.0,0.000581,120]
[392440350,1761475877736,-2000.0,0.0005863,71]
[392440351,1761475877745,-5000.0,0.000589,120]
[392440352,1761475877755,-2312.0,0.00059,120]
[392440353,1761475877764,-574.51684437,0.0005909,2]
[392440354,1761475877773,-200.36,0.0005912,2]
[392440355,1761475877783,-297.36,0.00059548,120]
[392440356,1761475877792,-2000.0,0.0005986,68]
[392440357,1761475877802,-1236.42023697,0.000599,120]
[392440358,1761475877811,-1000.0,0.00059999,120]
[392440359,1761475877820,-2000.0,0.0006,120]
[392440360,1761475877830,-44297.84,0.0006,120]
[392440361,1761475877840,-739.31489255,0.0006,120]
[392440362,1761475877851,-172.59423871,0.0006,120]
[392440363,1761475877863,-1166.50507461,0.0006,30]
[392440364,1761475877873,-17203.28882623,0.0006,120]
[392440365,1761475877883,-486.83366899,0.0006,120]
[392440366,1761475877893,-196.50293183,0.0006,120]
[392440367,1761475877904,-300.0,0.0006,2]
[392440368,1761475877918,-150.0,0.0006,65]
[392440369,1761475877929,-500.0,0.0006,120]
[392440370,1761475877940,-3000.0,0.0006,120]
[392440371,1761475877950,-2000.0,0.0006,120]
[392440372,1761475877961,-300.0,0.0006,120]
[392440373,1761475877971,-1700.0,0.0006,120]
[392440374,1761475877980,-500.0,0.0006,60]
[392440375,1761475877989,-23336.0,0.0006001,120]
[392440376,1761475877998,-2312.0,0.00061,120]
[392440377,1761475878007,-1757.0,0.00061,120]
[392440378,1761475878016,-393.0,0.00061,60]
[392440379,1761475878026,-3000.0,0.00061295,120]
[392440380,1761475878036,-999.0,0.00061643,120]
[392440381,1761475878046,-590.518,0.000618,120]
[392440382,1761475878056,-5429.21384878,0.000618,120]
[392440383,1761475878065,-3174.18,0.000621,120]
[392440384,1761475878074,-156.0,0.000629,120]
[392440385,1761475878083,-163.0,0.000629,120]
[392440386,1761475878092,-580.0,0.00063,120]
[392440387,1761475878102,-5000.0,0.00063013,68]
[392440388,1761475878111,-5000.0,0.00063013,68]
[392440389,1761475878120,-5000.0,0.00063013,71]
[392440390,1761475878130,-2000.0,0.0006329,65]
[392440391,1761475878139,-229.58277386,0.000635,120]
[392440392,1761475878148,-297.36,0.00063577,120]
[392440393,1761475878158,-5007.09093817,0.00063673,70]
[392440394,1761475878168,-2000.0,0.0006432,61]
[392440395,1761475878177,-3127.7905,0.00064444,30]
[392440396,1761475878192,-2000.0,0.0006452,62]
[392440397,1761475878206,-5000.0,0.000649,120]
[392440398,1761475878215,-420.0,0.00065,120]
[392440399,1761475878224,-150.0,0.00065,120]
[392440400,1761475878234,-300.0,0.00065,120]
[392440401,1761475878244,-150.0,0.00065,120]
[392440402,1761475878254,-150.0,0.00065,120]
[392440403,1761475878266,-1058.12909008,0.00065,120]
[392440404,1761475878275,-969.75377126,0.00065,120]
[392440405,1761475878285,-44297.84,0.00065,120]
[392440406,1761475878294,-5657.44135539,0.00065,120]
[392440407,1761475878304,-5813.42981322,0.00065,120]
[392440408,1761475878314,-150.0,0.00065,70]
[392440409,1761475878324,-1000.0,0.00065,2]
[392440410,1761475878333,-500.0,0.00065,120]
[392440411,1761475878343,-1179.0,0.00065,60]
[392440412,1761475878352,-200.36,0.00065609,2]
[392440413,1761475878362,-1331.8,0.00065753,120]
[392440414,1761475878371,-11438.76506141,0.00066,30]
[392440415,1761475878381,-843.10394188,0.00066,30]
[392440416,1761475878391,-311.62340632,0.00066,120]
[392440417,1761475878400,-800.0,0.000666,15]
[392440418,1761475878410,-2000.0,0.0006684,62]
[392440419,1761475878419,-7322.34,0.00067,30]
[392440420,1761475878429,-2000.0,0.0006756,61]
[392440421,1761475878439,-156.0,0.000676,120]
[392440422,1761475878448,-163.0,0.000676,120]
[392440423,1761475878457,-297.36,0.00067606,120]
[392440424,1761475878466,-4710.98,0.00068,30]
[392440425,1761475878476,-2000.0,0.0006836,62]
[392440426,1761475878485,-2000.0,0.0006854,61]
[392440427,1761475878495,-2000.0,0.0006893,68]
[392440428,1761475878505,-250.94,0.00069,60]
[392440429,1761475878515,-753.74,0.00069,30]
[392440430,1761475878525,-254451.4,0.0006918,120]
[392440431,1761475878535,-273.81,0.00069309,120]
[392440432,1761475878544,-2000.0,0.0006985,61]
[392440433,1761475878558,-999.0,0.00069863,120]
[392440434,1761475878568,-445.0,0.00069986,120]
[392440435,1761475878578,-1000.0,0.00069999,120]
[392440436,1761475878588,-2000.0,0.0007,120]
[392440437,1761475878598,-290.43497067,0.0007,120]
[392440438,1761475878731,-150.0,0.0007,80]
[392440439,1761475878741,-500.0,0.0007,120]
[392440440,1761475878750,-2000.0,0.0007,120]
[392440441,1761475878760,-2000.0,0.0007,120]
[392440442,1761475878770,-1537.0,0.0007,120]
[392440443,1761475878779,-500.0,0.0007,120]
[392440444,1761475878788,-42142.64256758,0.0007015,2]
[392440445,1761475878797,-5000.0,0.000709,120]
[392440446,1761475878807,-185.78,0.00071,60]
[392440447,1761475878816,-375.785,0.00071286,120]
[392440448,1761475878826,-297.36,0.00071635,120]
[392440449,1761475878836,-246.74615074,0.00072,30]
[392440450,1761475878845,-200.36,0.00072098,120]
[392440451,1761475878854,-13530.99761005,0.000721,2]
[392440452,1761475878863,-156.0,0.000723,120]
[392440453,1761475878872,-163.0,0.000723,120]
[392440454,1761475878881,-5000.0,0.0007296,69]
[392440455,1761475878890,-2000.0,0.0007423,62]
[392440456,1761475878899,-170007.3535,0.00074444,30]
[392440457,1761475878908,-3000.0,0.0007453,61]
[392440458,1761475878921,-445.0,0.00074986,120]
[392440459,1761475878930,-150.0,0.00075,90]
[392440460,1761475878939,-500.0,0.00075,120]
[392440461,1761475878948,-654.71482198,0.00075,30]
[392440462,1761475878958,-297.36,0.00075664,120]
[392440463,1761475878968,-533.59770669,0.000768,120]
[392440464,1761475878977,-158.0,0.00077,120]
[392440465,1761475878988,-170.0,0.00077,120]
[392440466,1761475878998,-600.0,0.000777,15]
[392440467,1761475879008,-100099.40628197,0.000777,120]
[392440468,1761475879017,-2000.0,0.0007785,68]
[392440469,1761475879028,-999.0,0.00078082,120]
[392440470,1761475879038,-200.36,0.00078587,120]
[392440471,1761475879047,-7322.34,0.00079,30]
[392440472,1761475879056,-3000.0,0.0007963,71]
[392440473,1761475879065,-2000.0,0.0007963,62]
[392440474,1761475879074,-297.36,0.00079693,120]
[392440475,1761475879083,-2000.0,0.0007986,68]
[392440476,1761475879092,-3829.26145975,0.000799,120]
[392440477,1761475879101,-1000.0,0.00079999,120]
[392440478,1761475879111,-2000.0,0.0008,120]
[392440479,1761475879120,-196127.384365,0.0008,2]
[392440480,1761475879130,-2528.16718093,0.0008,120]
[392440481,1761475879139,-156.59,0.0008,60]
[392440482,1761475879149,-500.0,0.0008,120]
[392440483,1761475879158,-1000.0,0.0008,120]
[392440484,1761475879168,-2000.0,0.0008,120]
[392440485,1761475879179,-300.0,0.0008,120]
[392440486,1761475879188,-178.0,0.0008,120]
[392440487,1761475879197,-187.0,0.0008,120]
[392440488,1761475879206,-8911.0,0.0008,120]
[392440489,1761475879215,-500.0,0.0008,120]
[392440490,1761475879225,-335.3912645,0.000801,30]
[392440491,1761475879234,-273.81,0.00080541,120]
[392440492,1761475879243,-333.83825202,0.00081,120]
[392440493,1761475879252,-4710.98,0.00081,30]
[392440494,1761475879262,-2000.0,0.0008245,72]
[392440495,1761475879272,-481.32,0.00083,120]
[392440496,1761475879281,-297.36,0.00083722,120]
[392440497,1761475879290,-753.74,0.00084,30]
[392440498,1761475879300,-2000.0,0.0008423,62]
[392440499,1761475879310,-2000.0,0.0008432,72]
[392440500,1761475879320,-85003.6767,0.00084444,30]
[392440501,1761475879334,-500.0,0.00085,120]
[392440502,1761475879344,-200.36,0.00085076,120]
[392440503,1761475879353,-2000.0,0.0008524,68]
[392440504,1761475879362,-156.0,0.0008538,120]
[392440505,1761475879372,-5000.0,0.000859,120]
[392440506,1761475879382,-999.0,0.00086301,120]
[392440507,1761475879391,-2000.0,0.0008639,64]
[392440508,1761475879401,-2000.0,0.0008653,75]
[392440509,1761475879410,-185.78,0.00087,60]
[392440510,1761475879419,-297.36,0.00087751,120]
[392440511,1761475879429,-11651.94015976,0.000878,120]
[392440512,1761475879439,-108032.65501531,0.0008788,120]
[392440513,1761475879448,-2000.0,0.0008796,64]
[392440514,1761475879457,-155.0,0.00089,120]
[392440515,1761475879466,-2000.0,0.0008925,64]
[392440516,1761475879475,-2000.0,0.0008963,72]
[392440517,1761475879484,-176.39686397,0.000899,120]
[392440518,1761475879493,-1000.0,0.00089999,120]